bitfinex/quotes_SOLUSD_20250306
["timestamp","ask_amount","ask_price","bid_price","bid_amount"]
[1741259360166,6.9135,151.88,151.81,80.3]
[1741259360447,80.8,151.87,151.78,0.14216157]
[1741259360756,6.9142,151.86,151.78,0.14216157]
[1741259360948,6.9142,151.86,151.78,0.28432314]
[1741259361837,6.9142,151.86,151.8,0.14216157]
[1741259362438,6.9142,151.86,151.79,0.14216157]
[1741259363338,6.9142,151.86,151.79,0.28432314]
[1741259363544,6.9142,151.86,151.79,0.14216157]
[1741259363768,87.381,151.85,151.74,33.34164073]
[1741259363973,80.8,151.84,151.76,0.28432314]
[1741259364472,20.0,151.81,151.73,113.64164073]
[1741259364766,6.9164,151.81,151.73,80.3]
[1741259364968,6.9164,151.81,151.74,0.28432314]
[1741259365335,6.9164,151.81,151.77,0.14216157]
[1741259365540,87.7164,151.81,151.77,0.14216157]
[1741259366467,1.9761,151.81,151.77,0.14216157]
[1741259366646,85.7396,151.84,151.77,0.14216157]
[1741259366848,1.9758,151.83,151.77,0.14216157]
[1741259367059,6.9155,151.83,151.77,0.14216157]
[1741259367871,6.9155,151.83,151.76,0.14216157]
[1741259368072,16.7949,151.83,151.76,0.14216157]
[1741259368374,6.9155,151.83,151.76,0.14216157]
[1741259369481,16.7949,151.83,151.76,312.14216157]
[1741259370591,6.9155,151.83,151.76,0.28432314]
[1741259370883,1.9758,151.83,151.78,0.14216157]
[1741259371095,1.9758,151.83,151.79,0.14216157]
[1741259371303,1.9758,151.83,151.8,0.14216157]
[1741259372087,6.9011,151.86,151.8,0.14216157]
[1741259372262,6.9146,151.85,151.8,0.14216157]
[1741259373283,6.9146,151.85,151.78,80.3]
[1741259373788,6.9146,151.85,151.79,0.14216157]
[1741259375988,6.9146,151.85,151.79,0.28432314]
[1741259376882,6.9146,151.85,151.79,0.14216157]
[1741259377063,16.7927,151.85,151.79,312.14216157]
[1741259377260,80.8,151.84,151.75,0.033]
[1741259377459,80.8,151.83,151.75,0.033]
[1741259377885,80.8,151.83,151.75,33.86129471]
[1741259378908,6.916,151.82,151.75,33.86129471]
[1741259379402,6.916,151.82,151.76,33.40181]
[1741259379604,6.916,151.82,151.77,0.28432314]
[1741259380001,6.916,151.82,151.77,0.14216157]
[1741259380205,6.916,151.82,151.81,0.14216157]
[1741259380420,0.03,151.87,151.83,0.42648471]
[1741259380710,0.03,151.87,151.86,33.68613314]
[1741259381005,0.03,151.87,151.86,52.47794357]
[1741259381503,0.03,151.87,151.86,59.06294357]
[1741259381716,0.03,151.87,151.86,52.47794357]
[1741259383575,0.03,151.87,151.86,371.06294357]
[1741259384382,0.03,151.87,151.86,364.47794357]
[1741259385977,0.03,151.87,151.86,372.84424357]
[1741259386882,0.00465264,151.91,151.87,25.41593357]
[1741259387096,0.00465264,151.91,151.9,52.47794357]
[1741259387301,0.00465264,151.91,151.9,19.07613357]
[1741259387705,0.00465264,151.91,151.9,52.47794357]
[1741259387905,0.00465264,151.91,151.9,273.86114357]
[1741259389929,0.00465264,151.91,151.9,267.27794357]
[1741259390124,0.00465264,151.91,151.9,579.27794357]
[1741259390416,0.00465264,151.91,151.9,585.86114357]
[1741259390988,0.00465264,151.91,151.9,545.44964886]
[1741259391400,0.00465264,151.91,151.9,545.87613357]
[1741259391692,0.00465264,151.91,151.9,411.09181043]
[1741259391892,0.00465264,151.91,151.9,411.37613357]
[1741259393917,0.00465264,151.91,151.88,20.84582419]
[1741259393918,0.00465264,151.91,151.86,82.1143]
[1741259394093,0.00465264,151.91,151.87,20.84582419]
[1741259394687,0.00465264,151.91,151.88,0.28432314]
[1741259395594,0.00465264,151.91,151.88,39.77979619]
[1741259396909,0.00465264,151.91,151.88,330.933972]
[1741259398397,0.00465264,151.91,151.88,18.933972]
[1741259398600,0.00465264,151.91,151.9,39.92195776]
[1741259399186,0.00465264,151.91,151.9,120.22195776]
[1741259399916,0.00465264,151.91,151.9,123.33751142]
[1741259400087,0.00465264,151.91,151.9,129.92071142]
[1741259400287,0.00465264,151.91,151.9,291.61783561]
[1741259400493,0.03,151.92,151.91,60.76778195]
[1741259400804,0.03,151.92,151.91,275.56778195]
[1741259401408,0.03,151.92,151.91,587.56778195]
[1741259402008,0.03,151.96,151.95,0.42648471]
[1741259402208,0.03,152.0,151.95,128.18422341]
[1741259402412,0.03,152.0,151.99,21.2723089]
[1741259402612,0.03,152.0,151.99,0.14216157]
[1741259403313,0.03,152.0,151.99,120.22195776]
[1741259404619,0.03,152.0,151.99,132.67446585]
[1741259405104,0.03,152.0,151.99,444.67446585]
[1741259405710,0.03,152.0,151.99,452.60916585]
[1741259406212,0.03,152.0,151.99,459.18846585]
[1741259406411,0.03,152.0,151.99,626.98679813]
[1741259406807,0.03,152.01,151.99,626.98679813]
[1741259406995,0.03,152.01,152.0,87.0534524]
[1741259407396,0.03,152.01,152.0,132.67446585]
[1741259409919,0.03,152.01,152.0,446.05533657]
[1741259410222,0.03,152.01,152.0,444.67446585]
[1741259410800,0.03,152.01,152.0,444.24798114]
[1741259411094,0.03,152.01,152.0,444.39014271]
[1741259411506,0.03,152.01,152.0,444.67446585]
[1741259413318,0.03,152.01,152.0,451.25336585]
[1741259414015,0.03,152.02,152.01,0.42648471]
[1741259414324,0.03,152.07,152.03,8.68068471]
[1741259414503,0.03,152.07,152.03,0.14216157]
[1741259415199,1.7125,152.05,152.01,80.3]
[1741259415410,1.7125,152.05,152.0,0.21324235]
[1741259415815,1.7125,152.05,152.01,0.14216157]
[1741259416018,1.7125,152.05,152.01,0.28432314]
[1741259416514,6.2134,152.06,152.01,33.58265542]
[1741259416922,1.973,152.05,152.01,33.58265542]
[1741259417116,1.973,152.05,152.02,312.0]
[1741259417324,1.973,152.05,152.03,0.14216157]
[1741259417823,1.973,152.05,152.01,0.14216157]
[1741259418935,1.973,152.05,152.01,0.28432314]
[1741259419260,1.973,152.05,152.01,33.58265542]
[1741259419399,1.973,152.05,152.01,0.28432314]
[1741259419997,1.973,152.05,152.01,33.58265542]
[1741259420303,1.973,152.05,152.01,0.28432314]
[1741259420705,1.973,152.05,152.03,0.14216157]
[1741259421206,1.9729,152.06,152.01,0.28432314]
[1741259422430,1.9729,152.06,152.01,52.37446585]
[1741259422808,1.9729,152.06,152.03,0.14216157]
[1741259423010,82.8027,152.07,152.03,0.28432314]
[1741259424209,82.8027,152.07,152.05,0.14216157]
[1741259424415,0.03,152.07,152.05,0.14216157]
[1741259425012,0.03,152.07,152.06,52.37446585]
[1741259425331,0.03,152.07,152.06,58.95076585]
[1741259425521,0.03,152.07,152.06,52.37446585]
[1741259426110,0.03,152.07,152.06,19.07613357]
[1741259427834,0.03,152.07,152.06,331.07613357]
[1741259428231,0.03,152.07,152.06,312.0]
[1741259428422,0.03,152.07,152.01,20.80344673]
[1741259428808,0.03,152.07,152.02,18.64964886]
[1741259429113,0.03,152.07,152.03,0.28432314]
[1741259429641,0.03,152.07,152.03,39.73741873]
[1741259429818,0.03,152.07,152.06,0.14216157]
[1741259430021,0.03,152.07,152.05,0.14216157]
[1741259430822,0.03,152.07,152.04,0.28432314]
[1741259431020,0.03,152.07,152.05,20.9456083]
[1741259431220,0.03,152.07,152.06,39.8795803]
[1741259431424,0.03,152.07,152.06,432.1795803]
[1741259432552,0.03,152.07,152.06,573.2558803]
[1741259433622,0.03,152.08,152.07,0.14216157]
[1741259433832,0.03,152.08,152.07,285.16805831]
[1741259434035,0.03,152.08,152.07,283.78792703]
[1741259434268,0.03,152.08,152.07,262.9844803]
[1741259435132,0.03,152.08,152.07,290.36382703]
[1741259435444,0.03,152.1,152.09,0.42648471]
[1741259435762,0.03,152.1,152.09,41.25946492]
[1741259436445,0.03,152.13,152.12,19.07613357]
[1741259436630,0.03,152.13,152.12,256.05930622]
[1741259436832,0.03,152.13,152.12,566.6795803]
[1741259438247,0.03,152.15,152.12,566.6795803]
[1741259438441,0.03,152.15,152.14,39.8795803]
[1741259439030,0.03,152.15,152.14,261.0515803]
[1741259439952,0.03,152.15,152.14,240.24813357]
[1741259440156,0.03,152.15,152.14,233.87613357]
[1741259440653,0.03,152.15,152.14,99.37613357]
[1741259440856,0.03,152.15,152.14,80.3]
[1741259441048,0.03,152.15,152.14,80.58432314]
[1741259441348,0.03,152.15,152.14,392.58432314]
[1741259441556,0.03,152.15,152.14,411.37613357]
[1741259442059,0.03,152.15,152.14,432.1795803]
[1741259442352,0.03,152.15,152.14,411.37613357]
[1741259443144,0.03,152.15,152.14,432.1795803]
[1741259444660,0.03,152.15,152.14,411.37613357]
[1741259445839,0.03,152.15,152.14,312.0]
[1741259446344,0.03,152.15,152.14,312.14216157]
[1741259447631,0.03,152.15,152.14,312.0]
[1741259448036,0.03,152.15,152.14,312.14216157]
[1741259448862,0.03,152.15,152.08,20.80344673]
[1741259449049,0.03,152.15,152.07,20.80344673]
[1741259449050,80.83,152.15,152.07,20.80344673]
[1741259449249,80.83,152.15,152.08,0.28432314]
[1741259450242,80.83,152.15,152.07,39.45309559]
[1741259450576,80.83,152.15,152.09,0.28432314]
[1741259451073,82.8018,152.15,152.11,21.08776987]
[1741259451474,2.0018,152.15,152.11,21.08776987]
[1741259451834,2.0018,152.15,152.14,312.14216157]
[1741259452864,2.0018,152.15,152.14,0.14216157]
[1741259453069,0.03,152.15,152.09,20.80344673]
[1741259453280,0.03,152.15,152.1,0.42648471]
[1741259453483,0.03,152.15,152.1,19.07613357]
[1741259453870,0.03,152.15,152.1,0.14216157]
[1741259454067,20.0,152.14,152.09,80.3]
[1741259454469,20.0,152.14,152.1,0.14216157]
[1741259454685,20.0,152.14,152.08,0.14216157]
[1741259454985,1.9719,152.13,152.09,0.14216157]
[1741259455155,21.9718,152.14,152.09,20.9456083]
[1741259455354,1.9718,152.14,152.09,20.9456083]
[1741259455771,0.03,152.15,152.11,0.14216157]
[1741259455987,0.03,152.15,152.13,0.14216157]
[1741259456284,0.03,152.15,152.14,21.22993144]
[1741259456468,0.03,152.15,152.14,39.8795803]
[1741259457082,0.03,152.15,152.14,46.4523803]
[1741259458073,0.03,152.15,152.14,261.2523803]
[1741259458994,0.03,152.17,152.15,19.07613357]
[1741259459302,0.03,152.17,152.16,60.68302703]
[1741259459457,0.03,152.17,152.16,372.68302703]
[1741259460360,0.03,152.17,152.16,587.48302703]
[1741259461399,0.03,152.17,152.16,594.05502703]
[1741259461875,0.03,152.17,152.16,573.2515803]
[1741259462065,0.03,152.17,152.16,566.6795803]
[1741259462395,0.03,152.17,152.16,594.05502703]
[1741259463967,0.03,152.17,152.16,566.6795803]
[1741259464189,0.03,152.17,152.16,566.25309559]
[1741259464587,0.03,152.17,152.16,566.39525716]
[1741259464898,0.03,152.17,152.16,312.0]
[1741259465094,0.03,152.17,152.16,312.28432314]
[1741259465400,0.03,152.17,152.16,312.0]
[1741259465603,0.03,152.17,152.13,0.033]
[1741259465903,0.03,152.17,152.13,0.31732314]
[1741259466267,0.03,152.17,152.13,0.033]
[1741259466466,0.03,152.17,152.14,0.14216157]
[1741259466686,0.03,152.17,152.13,0.033]
[1741259467187,0.03,152.17,152.14,0.14216157]
[1741259467395,0.03,152.17,152.13,20.9786083]
[1741259467795,0.03,152.17,152.14,0.14216157]
[1741259468578,0.03,152.17,152.16,0.28432314]
[1741259468895,0.03,152.17,152.16,0.14216157]
[1741259469387,0.03,152.17,152.15,0.14216157]
[1741259469990,0.03,152.17,152.15,0.28432314]
[1741259471778,0.03,152.17,152.15,39.73741873]
[1741259472099,0.03,152.17,152.16,312.28432314]
[1741259472486,0.03,152.17,152.16,312.0]
[1741259472690,0.03,152.17,152.13,0.033]
[1741259473099,0.03,152.17,152.13,0.17516157]
[1741259473611,0.03,152.17,152.15,0.033]
[1741259473799,0.03,152.17,152.15,0.17516157]
[1741259474795,0.03,152.17,152.15,0.033]
[1741259475610,100.8,152.16,152.15,0.033]
[1741259476197,100.8,152.16,152.15,0.17516157]
[1741259476387,80.8,152.16,152.15,0.17516157]
[1741259477600,82.7716,152.16,152.15,0.17516157]
[1741259478910,82.7716,152.16,152.15,0.033]
[1741259479596,20.0,152.14,152.13,0.033]
[1741259481717,21.9718,152.14,152.13,0.033]
[1741259481889,21.9718,152.14,152.13,312.17516157]
[1741259482578,20.0,152.12,152.06,80.3]
[1741259482779,80.4,152.13,152.04,20.80344673]
[1741259483090,80.4,152.13,152.05,19.07613357]
[1741259483408,80.4,152.13,152.05,39.8795803]
[1741259484018,20.0,152.08,152.02,0.033]
[1741259484324,20.0,152.08,152.02,0.17516157]
[1741259484325,1.6684,152.07,152.02,0.17516157]
[1741259484481,80.4,152.06,152.02,0.17516157]
[1741259484687,80.4,152.06,152.02,0.033]
[1741259485481,80.4,152.06,152.05,0.033]
[1741259485909,82.3729,152.06,152.05,0.033]
[1741259487315,6.9051,152.06,152.02,312.033]
[1741259487496,20.0,152.03,152.02,312.033]
[1741259487683,20.0,152.03,152.02,312.17516157]
[1741259487878,21.9732,152.03,152.02,312.17516157]
[1741259488293,21.9732,152.03,152.02,312.033]
[1741259488506,21.9732,152.03,152.02,0.033]
[1741259490008,20.0,152.03,152.02,0.033]
[1741259490503,82.773,152.05,152.02,0.033]
[1741259490712,82.773,152.05,152.02,0.17516157]
[1741259490713,80.8,152.05,152.02,0.17516157]
[1741259491015,82.773,152.05,152.02,0.17516157]
[1741259491189,80.8,152.05,152.02,0.17516157]
[1741259491511,80.8,152.05,152.04,312.14216157]
[1741259492017,1.9725,152.09,152.05,0.14216157]
[1741259492315,80.8,152.1,152.05,20.9456083]
[1741259493913,80.8,152.1,152.05,0.14216157]
[1741259494212,80.8,152.1,152.02,0.033]
[1741259494213,82.7723,152.1,152.02,0.033]
[1741259494516,82.7723,152.1,152.02,0.17516157]
[1741259494892,80.8,152.1,152.02,40.05709266]
[1741259495110,80.8,152.1,152.05,312.0]
[1741259495412,80.8,152.1,152.06,0.14216157]
[1741259495413,82.7724,152.1,152.06,0.14216157]
[1741259495614,80.8,152.09,152.06,0.14216157]
[1741259496112,1.9726,152.08,152.06,0.14216157]
[1741259496294,100.8,152.07,152.02,0.033]
[1741259497496,80.8,152.06,152.02,0.17516157]
[1741259498313,80.8,152.06,152.02,6.6108]
[1741259498513,80.8,152.06,152.03,0.14216157]
[1741259498914,80.8,152.06,152.02,0.033]
[1741259499118,82.7729,152.06,152.02,0.033]
[1741259499296,20.0,152.04,152.03,0.14216157]
[1741259499497,80.8,152.05,152.03,0.14216157]
[1741259499806,80.8,152.05,152.02,0.033]
[1741259500427,82.773,152.05,152.02,0.033]
[1741259502126,80.8,152.04,152.02,0.033]
[1741259503295,20.0,152.0,151.99,0.033]
[1741259503698,20.0,152.02,151.99,0.033]
[1741259504096,1.9733,152.03,151.99,312.033]
[1741259504330,6.24,152.07,152.0,0.14216157]
[1741259504510,82.7729,152.06,152.0,0.14216157]
[1741259505313,80.8,152.05,151.99,0.17516157]
[1741259505511,80.8,152.05,151.99,33.47909266]
[1741259505704,80.8,152.05,152.02,0.14216157]
[1741259506119,80.8,152.05,152.02,33.44609266]
[1741259506304,80.8,152.05,152.01,33.44609266]
[1741259506712,17.8087,152.12,152.03,0.14216157]
[1741259506713,80.8,152.09,152.03,0.14216157]
[1741259506911,80.8,152.09,152.04,0.28432314]
[1741259506912,82.7725,152.09,152.04,0.28432314]
[1741259507102,82.7725,152.09,152.04,33.58825423]
[1741259507427,82.7725,152.09,152.04,0.14216157]
[1741259507602,82.7725,152.09,152.08,0.14216157]
[1741259508015,20.0,152.07,152.06,0.14216157]
[1741259508323,20.0,152.07,152.02,0.14216157]
[1741259508324,26.9046,152.07,152.02,0.14216157]
[1741259508627,80.8,152.06,151.99,0.033]
[1741259508925,80.8,152.05,151.99,0.033]
[1741259509799,80.8,152.05,152.02,0.14216157]
[1741259510105,80.8,152.05,152.02,33.44609266]
[1741259510303,1.9727,152.07,152.02,33.44609266]
[1741259510837,80.8,152.08,152.04,0.14216157]
[1741259511124,80.8,152.08,152.06,0.14216157]
[1741259511125,82.7726,152.08,152.06,0.14216157]
[1741259511423,80.8,152.08,152.06,33.44609266]
[1741259511799,80.8,152.08,152.05,33.30393109]
[1741259512005,80.8,152.08,152.06,0.14216157]
[1741259512418,80.8,152.08,152.03,0.14216157]
[1741259512419,82.7726,152.08,152.03,0.14216157]
[1741259512625,80.8,152.07,152.02,0.14216157]
[1741259513305,80.8,152.07,152.01,33.44609266]
[1741259514226,80.8,152.07,152.01,0.14216157]
[1741259514432,1.9729,152.06,152.01,0.28432314]
[1741259514618,1.9729,152.06,152.04,0.14216157]
[1741259514924,82.7729,152.06,152.04,0.14216157]
[1741259515117,87.7051,152.06,152.0,0.28432314]
[1741259515519,87.7051,152.06,152.0,0.14216157]
[1741259515713,87.7051,152.06,151.99,0.033]
[1741259516227,87.7051,152.06,151.99,0.31732314]
[1741259516626,87.7051,152.06,151.99,33.62125423]
[1741259518015,87.7051,152.06,152.03,0.14216157]
[1741259518737,87.7051,152.06,152.0,0.14216157]
[1741259519337,80.8,152.05,152.0,0.14216157]
[1741259520131,80.8,152.04,151.99,0.033]
[1741259520334,20.0,152.0,151.97,0.033]
[1741259520517,106.35604886,152.03,151.97,0.033]
[1741259520518,1.5506,152.01,151.97,0.033]
[1741259520714,80.8,152.0,151.97,0.033]
[1741259521730,80.8,152.0,151.99,0.14216157]
[1741259522034,82.4464,152.05,151.99,0.14216157]
[1741259522242,80.8,152.04,151.99,33.44609266]
[1741259522609,80.8,152.04,151.98,33.44609266]
[1741259523237,82.7731,152.04,151.98,0.14216157]
[1741259523737,82.7731,152.04,151.97,0.033]
[1741259524841,80.8,152.04,151.98,33.44609266]
[1741259525131,80.8,152.04,152.01,0.14216157]
[1741259525520,80.8,152.04,152.0,0.14216157]
[1741259525927,0.03,152.05,152.03,0.14216157]
[1741259526129,0.03,152.05,152.03,33.44609266]
[1741259526748,0.03,152.05,152.04,33.58825423]
[1741259526925,0.03,152.05,152.04,52.38006466]
[1741259527447,0.03,152.05,152.04,133.68006466]
[1741259527644,0.03,152.1,152.05,25.39713357]
[1741259527833,0.03,152.1,152.09,33.58825423]
[1741259528648,0.03,152.1,152.09,345.58825423]
[1741259528851,0.03,152.1,152.09,370.95506466]
[1741259530025,10.22329133,152.15,152.09,370.95506466]
[1741259530026,10.22329133,152.15,152.1,25.40513357]
[1741259530333,0.03,152.16,152.15,0.28432314]
[1741259530537,0.03,152.16,152.15,33.58825423]
[1741259531251,0.03,152.16,152.15,40.16065423]
[1741259531459,0.03,152.16,152.15,33.58825423]
[1741259531955,0.03,152.16,152.15,58.95246466]
[1741259532161,0.03,152.16,152.15,93.79779575]
[1741259532455,0.03,152.16,152.15,101.76884192]
[1741259533232,0.03,152.16,152.15,413.76884192]
[1741259533532,0.03,152.17,152.16,19.07613357]
[1741259533727,0.03,152.21,152.18,39.07613357]
[1741259533925,0.03,152.21,152.2,25.23253357]
[1741259534130,0.03,152.21,152.2,275.71547503]
[1741259534351,0.03,152.21,152.2,274.33646466]
[1741259534943,0.03,152.23,152.22,0.14216157]
[1741259535142,0.03,152.23,152.22,58.94946466]
[1741259536648,0.03,152.23,152.22,370.94946466]
[1741259538222,0.03,152.23,152.18,20.0]
[1741259538223,0.03,152.23,152.18,81.3]
[1741259538446,0.03,152.23,152.17,1.6527]
[1741259538654,0.03,152.23,152.16,81.3]
[1741259538859,80.8,152.22,152.14,33.30393109]
[1741259539027,80.8,152.22,152.15,18.933972]
[1741259539648,1.9709,152.21,152.14,33.30393109]
[1741259539829,1.9709,152.21,152.15,19.07613357]
[1741259540031,80.8,152.22,152.17,0.28432314]
[1741259540241,80.8,152.22,152.18,33.7304158]
[1741259540435,80.8,152.22,152.2,0.14216157]
[1741259540637,2.0007,152.23,152.2,0.14216157]
[1741259540941,2.0007,152.23,152.16,0.14216157]
[1741259541141,82.8007,152.23,152.16,0.14216157]
[1741259541346,82.8007,152.23,152.21,0.14216157]
[1741259542235,80.83,152.23,152.21,0.14216157]
[1741259542552,80.83,152.23,152.18,33.30393109]
[1741259542553,80.83,152.23,152.19,0.28432314]
[1741259542863,82.8007,152.23,152.19,0.28432314]
[1741259543236,82.8007,152.23,152.19,0.14216157]
[1741259544349,82.8007,152.23,152.18,0.14216157]
[1741259544941,87.7274,152.23,152.16,0.28432314]
[1741259545137,87.7274,152.23,152.16,0.14216157]
[1741259545448,87.7274,152.23,152.2,0.14216157]
[1741259545744,1.9709,152.21,152.2,0.14216157]
[1741259546153,1.9709,152.21,152.17,0.14216157]
[1741259546366,6.8983,152.21,152.17,0.14216157]
[1741259546660,6.8983,152.21,152.19,0.033]
[1741259547332,80.8,152.2,152.13,0.21324235]
[1741259547532,80.8,152.19,152.14,33.30393109]
[1741259547858,1.9713,152.18,152.16,0.14216157]
[1741259548051,82.7712,152.19,152.16,0.14216157]
[1741259548245,80.8,152.19,152.16,0.14216157]
[1741259548860,80.8,152.19,152.18,312.14216157]
[1741259549158,1.9709,152.21,152.19,0.14216157]
[1741259549559,1.9709,152.21,152.16,0.28432314]
[1741259550860,1.9709,152.21,152.16,0.14216157]
[1741259551241,6.8983,152.21,152.16,0.14216157]
[1741259551856,1.9709,152.21,152.16,0.14216157]
[1741259552437,1.9709,152.21,152.2,0.14216157]
[1741259552743,82.7708,152.22,152.2,0.14216157]
[1741259553141,82.7708,152.22,152.18,0.14216157]
[1741259554248,87.6978,152.22,152.17,0.14216157]
[1741259554448,82.7708,152.22,152.17,0.14216157]
[1741259555157,87.6978,152.22,152.17,0.14216157]
[1741259556255,87.6978,152.22,152.21,0.14216157]
[1741259557260,80.8,152.21,152.13,0.21324235]
[1741259557475,80.8,152.2,152.13,0.21324235]
[1741259557641,80.8,152.19,152.1,81.3]
[1741259557846,80.8,152.19,152.1,114.60393109]
[1741259558056,80.8,152.19,152.13,0.14216157]
[1741259558764,80.8,152.19,152.11,52.09574152]
[1741259558968,80.8,152.19,152.12,0.14216157]
[1741259559463,1.9713,152.18,152.17,0.14216157]
[1741259559671,82.7713,152.18,152.17,0.14216157]
[1741259560256,80.8,152.18,152.15,0.14216157]
[1741259561473,80.8,152.18,152.16,0.14216157]
[1741259562274,80.8,152.18,152.15,0.28432314]
[1741259562869,80.8,152.18,152.17,312.14216157]
[1741259563773,1.9712,152.19,152.18,0.14216157]
[1741259564674,0.03,152.21,152.18,0.14216157]
[1741259564976,1.9711,152.2,152.15,0.28432314]
[1741259565975,0.03,152.21,152.15,0.28432314]
[1741259566173,2.0009,152.21,152.15,0.28432314]
[1741259567069,0.03,152.21,152.17,0.14216157]
[1741259567672,0.03,152.21,152.18,0.14216157]
[1741259567971,0.03,152.21,152.16,21.06282108]
[1741259567972,0.03,152.21,152.2,312.14216157]
[1741259568176,80.8,152.2,152.1,27.35299794]
[1741259568473,80.8,152.19,152.12,0.14216157]
[1741259569261,80.8,152.19,152.16,0.14216157]
[1741259569460,80.8,152.19,152.15,312.0]
[1741259569774,80.8,152.19,152.13,0.17516157]
[1741259570151,1.9713,152.18,152.13,0.17516157]
[1741259570385,80.8,152.17,152.13,0.033]
[1741259570556,20.0,152.14,152.13,0.033]
[1741259570756,80.8,152.13,152.03,6.0659]
[1741259570968,80.8,152.12,152.03,26.84439794]
[1741259571155,80.8,152.12,152.04,18.64964886]
[1741259571356,80.8,152.12,152.05,20.77849794]
[1741259571579,80.8,152.12,152.06,0.28432314]
[1741259572280,80.8,152.12,152.05,20.77849794]
[1741259572456,1.3148,152.11,152.06,0.28432314]
[1741259572657,1.3148,152.11,152.1,0.14216157]
[1741259572983,80.8,152.12,152.1,0.14216157]
[1741259573684,82.1144,152.16,152.09,33.56575255]
[1741259573859,80.8,152.15,152.11,0.14216157]
[1741259574181,80.8,152.17,152.11,33.56575255]
[1741259574398,80.8,152.17,152.13,33.56575255]
[1741259574681,80.8,152.19,152.13,33.56575255]
[1741259574975,80.8,152.19,152.13,0.28432314]
[1741259575176,82.1141,152.19,152.13,0.28432314]
[1741259575368,82.1141,152.19,152.11,0.14216157]
[1741259575572,85.3994,152.19,152.11,0.14216157]
[1741259575764,20.0,152.16,152.11,0.14216157]
[1741259576154,80.8,152.15,152.05,33.28142941]
[1741259576367,80.8,152.14,152.05,19.07613357]
[1741259576567,1.3146,152.13,152.05,18.64964886]
[1741259576897,6.1823,152.13,152.04,81.3]
[1741259577082,80.8,152.12,152.04,0.28432314]
[1741259577672,80.8,152.12,152.04,52.07323984]
[1741259577879,80.8,152.12,152.06,0.28432314]
[1741259578458,80.8,152.12,152.07,0.14216157]
[1741259579268,80.8,152.12,152.11,0.14216157]
[1741259579467,80.8,152.15,152.11,0.14216157]
[1741259579663,82.1145,152.15,152.11,0.14216157]
[1741259579985,82.1145,152.15,152.1,0.14216157]
[1741259580467,85.4007,152.15,152.07,0.28432314]
[1741259580864,18.64964886,152.14,152.04,81.3]
[1741259581264,80.8,152.13,152.04,33.28142941]
[1741259581489,80.8,152.13,152.05,52.35756298]
[1741259583392,80.8,152.13,152.09,33.42359098]
[1741259583992,80.8,152.13,152.1,33.56575255]
[1741259584196,80.8,152.13,152.1,33.42359098]
[1741259584575,80.8,152.13,152.1,6.71666157]
[1741259584790,80.8,152.13,152.1,0.14216157]
[1741259584972,80.8,152.13,152.1,0.28432314]
[1741259585794,80.8,152.13,152.1,33.56575255]
[1741259586191,80.8,152.13,152.12,312.14216157]
[1741259586397,80.8,152.16,152.13,0.14216157]
[1741259586595,80.8,152.19,152.13,40.13865255]
[1741259588113,80.8,152.19,152.15,0.14216157]
[1741259588409,80.8,152.19,152.15,33.42359098]
[1741259588584,0.03,152.2,152.17,0.14216157]
[1741259589908,0.03,152.2,152.16,39.85322941]
[1741259589909,0.03,152.2,152.19,312.14216157]
[1741259594311,0.03,152.2,152.19,0.14216157]
[1741259594680,0.03,152.2,152.19,312.14216157]
[1741259595404,0.03,152.2,152.13,39.71152941]
[1741259595615,80.83,152.2,152.13,6.4301]
[1741259595785,80.83,152.2,152.14,0.28432314]
[1741259596303,80.83,152.2,152.14,0.14216157]